bitfinex-derivatives/quotes_ETHF0:USTF0_20260123
["timestamp","ask_amount","ask_price","bid_price","bid_amount"]
[1769141818792,0.77979111,2975.7,2974.6,1.76364108]
[1769141818994,0.17355231,2976.0,2974.6,1.76364108]
[1769141819201,0.77978748,2975.9,2974.6,1.76364108]
[1769141819492,0.77978748,2975.8,2974.6,1.76364108]
[1769141819693,0.77978748,2975.7,2974.6,1.76364108]
[1769141819895,0.17355231,2976.0,2974.6,1.76364108]
[1769141820196,0.94432175,2975.9,2974.6,1.76364108]
[1769141820496,0.94432175,2975.8,2974.6,1.76364108]
[1769141820696,0.77979574,2975.7,2974.5,1.76364108]
[1769141821396,0.77979574,2975.7,2974.6,1.76364108]
[1769141821897,0.15827981,2975.6,2974.4,1.76364108]
[1769141822090,0.93807555,2975.5,2974.3,1.76364108]
[1769141822289,0.77979574,2975.4,2974.3,1.76364108]
[1769141823493,0.77979574,2975.4,2974.2,1.76364108]
[1769141824598,0.93901148,2975.4,2974.1,1.76638887]
[1769141824789,1.30384669,2975.7,2974.1,1.76638887]
[1769141824790,0.77979574,2975.3,2974.2,0.16608698]
[1769141824986,0.0090263,2976.0,2974.2,0.16608698]
[1769141825190,0.77961572,2975.9,2974.4,0.16608698]
[1769141825396,0.77961572,2975.8,2974.4,0.16608698]
[1769141825595,0.77961572,2975.7,2974.4,0.16608698]
[1769141825796,0.77961572,2975.6,2974.4,0.16608698]
[1769141826000,0.77961572,2975.5,2974.4,0.16608698]
[1769141826199,0.77961572,2975.4,2974.4,0.16608698]
[1769141826395,2.03724204,2976.0,2974.4,0.16608698]
[1769141826595,0.77951662,2975.9,2974.4,0.16608698]
[1769141826801,0.77951662,2975.8,2974.4,0.16608698]
[1769141826994,0.77951662,2975.7,2974.4,0.16608698]
[1769141827298,0.77951662,2975.6,2974.4,0.16608698]
[1769141827496,0.77951662,2975.5,2974.4,0.16608698]
[1769141827697,2.03724204,2976.0,2974.4,0.16608698]
[1769141827899,0.78072157,2975.9,2974.4,0.16608698]
[1769141828087,0.78072157,2975.8,2974.4,0.16608698]
[1769141828297,0.78072157,2975.7,2974.4,0.16608698]
[1769141828493,0.93993731,2975.6,2974.3,1.76364108]
[1769141828699,0.78072157,2975.5,2974.2,1.76364108]
[1769141829600,0.78072157,2975.5,2974.2,1.92972806]
[1769141829797,0.78072157,2975.4,2974.3,1.76364108]
[1769141829997,1.87,2975.8,2974.3,1.92972806]
[1769141830197,0.78075933,2975.7,2974.3,1.92972806]
[1769141830402,0.78075933,2975.6,2974.3,1.92972806]
[1769141830592,0.78075933,2975.5,2974.3,1.92972806]
[1769141830798,0.78075933,2975.4,2974.3,1.92972806]
[1769141830997,0.88551426,2975.5,2974.3,0.16608698]
[1769141831192,0.78074744,2975.4,2974.3,0.16608698]
[1769141831405,0.88551426,2975.5,2974.3,0.16608698]
[1769141831603,0.78073262,2975.4,2974.3,1.92972806]
[1769141831795,0.88551426,2975.5,2974.3,1.92972806]
[1769141831993,0.78072099,2975.4,2974.3,1.92972806]
[1769141832307,0.88551426,2975.5,2974.3,1.92972806]
[1769141832502,0.78071166,2975.4,2974.3,1.92972806]
[1769141832703,0.88551426,2975.5,2974.3,1.92972806]
[1769141832895,0.88551426,2975.2,2974.2,1.76364108]
[1769141835003,0.88551426,2975.2,2974.3,1.76364108]
[1769141835507,0.88551426,2975.2,2974.2,1.76364108]
[1769141836796,0.88551426,2974.9,2974.1,1.76638887]
[1769141837000,0.88551426,2974.9,2974.1,0.00274779]
[1769141838511,0.88551426,2974.3,2973.3,6.35103391]
[1769141838808,0.88551426,2974.6,2973.3,2.51103391]
[1769141839311,0.00503973,2974.1,2973.3,0.16608698]
[1769141839605,0.00503973,2974.1,2973.3,0.16960955]
[1769141840014,0.88551426,2974.0,2973.3,0.00352257]
[1769141844323,0.00503973,2974.1,2973.3,0.00352257]
[1769141845818,0.00503973,2974.1,2973.3,0.16960955]
[1769141846114,0.88551426,2975.0,2973.6,0.16608698]
[1769141846322,0.88551426,2974.7,2973.6,0.16608698]
[1769141846622,0.88551426,2974.7,2973.3,3.84352257]
[1769141847514,0.88551426,2974.7,2973.3,4.00960955]
[1769141847708,0.88551426,2974.7,2973.4,0.16608698]
[1769141848925,0.15921574,2975.1,2973.4,0.16608698]
[1769141849125,0.78589783,2975.0,2973.8,0.00503973]
[1769141849425,0.78589783,2974.9,2973.8,0.00503973]
[1769141849624,0.15921574,2975.1,2973.8,0.00503973]
[1769141851428,0.15921574,2974.9,2973.8,0.00503973]
[1769141853420,0.15018691,2974.8,2973.8,0.00503973]
[1769141857432,0.15018691,2975.2,2973.8,0.00503973]
[1769141857632,0.93916584,2975.1,2973.8,0.00503973]
[1769141857932,0.78897893,2975.0,2973.8,0.00503973]
[1769141858124,0.78910271,2974.9,2973.8,0.00503973]
[1769141858320,0.15018691,2975.1,2973.8,0.00503973]
[1769141858532,0.15018691,2974.9,2973.8,0.00503973]
[1769141859835,0.78921363,2974.8,2973.8,0.00503973]
[1769141860033,0.15018691,2974.9,2973.8,0.00503973]
[1769141860227,0.78921449,2974.8,2973.8,0.00503973]
[1769141860430,0.15018691,2974.9,2973.8,0.00503973]
[1769141860630,0.78935875,2974.8,2973.8,0.00503973]
[1769141860830,0.15018691,2974.9,2973.8,0.00503973]
[1769141861030,0.78935872,2974.8,2973.8,0.00503973]
[1769141861335,0.15018691,2974.9,2973.8,0.00503973]
[1769141861537,0.78952329,2974.8,2973.8,0.00503973]
[1769141861739,0.15018691,2974.9,2973.8,0.00503973]
[1769141861932,0.78951471,2974.8,2973.8,0.00503973]
[1769141862237,0.15018691,2974.9,2973.8,0.00503973]
[1769141862440,0.7897195,2974.8,2973.8,0.00503973]
[1769141862642,0.15018691,2974.9,2973.8,0.00503973]
[1769141862940,0.78972813,2974.8,2973.8,0.00503973]
[1769141863141,0.15018691,2974.9,2973.8,0.00503973]
[1769141863439,0.78990979,2974.8,2973.8,0.00503973]
[1769141863641,0.15018691,2974.9,2973.8,0.00503973]
[1769141863836,0.7899098,2974.8,2973.8,0.00503973]
[1769141864036,0.15018691,2974.9,2973.8,0.00503973]
[1769141864237,0.79013365,2974.8,2973.8,0.00503973]
[1769141864446,0.79013365,2974.7,2973.8,0.00503973]
[1769141864741,0.15018691,2974.9,2973.8,0.00503973]
[1769141864941,0.79013369,2974.8,2973.8,0.00503973]
[1769141865144,0.79013369,2974.7,2973.8,0.00503973]
[1769141865441,0.15018691,2974.9,2973.8,0.00503973]
[1769141865635,0.94059862,2974.8,2973.8,0.00503973]
[1769141865831,0.79041171,2974.7,2973.8,0.00503973]
[1769141866035,0.15018691,2974.8,2973.8,0.00503973]
[1769141866342,0.94059846,2974.7,2973.8,0.00503973]
[1769141866543,0.79041155,2974.6,2973.8,0.00503973]
[1769141866746,0.94059846,2974.6,2973.8,0.00503973]
[1769141866945,0.79041155,2974.5,2973.8,0.00503973]
[1769141868044,0.94059846,2974.5,2973.8,0.00503973]
[1769141868245,0.15018691,2974.5,2973.8,0.00503973]
[1769141869246,0.15018691,2974.5,2973.4,1.80029789]
[1769141869452,0.79624056,2974.4,2973.3,5.64382046]
[1769141869749,0.15522664,2974.4,2973.3,1.80382046]
[1769141873638,0.79150205,2974.3,2973.3,0.00352257]
[1769141873834,0.15522664,2974.4,2973.3,0.00352257]
[1769141874044,0.79150385,2974.3,2973.3,0.00352257]
[1769141874242,0.00503973,2974.4,2973.3,1.80382046]
[1769141874436,0.79155436,2974.3,2973.3,1.96612135]
[1769141874640,0.00503973,2974.4,2973.3,1.96612135]
[1769141874943,0.79154021,2974.3,2973.3,1.96612135]
[1769141875241,0.40358691,2975.5,2973.8,1.96259878]
[1769141875451,0.94175055,2975.4,2974.0,1.80029789]
[1769141875749,0.79156364,2975.3,2974.0,1.80029789]
[1769141875943,0.2534,2975.5,2974.2,0.1683]
[1769141875944,0.79156364,2975.2,2974.2,0.1683]
[1769141876149,0.2534,2975.5,2974.2,0.1683]
[1769141876448,0.79090383,2975.4,2974.2,0.1683]
[1769141876645,0.79090383,2975.3,2974.2,0.1683]
[1769141876842,0.2534,2975.5,2974.2,0.1683]
[1769141877043,0.79089923,2975.4,2974.2,0.1683]
[1769141877244,0.79089923,2975.3,2974.2,0.1683]
[1769141877443,0.2534,2975.5,2974.2,0.1683]
[1769141877639,0.7905843,2975.4,2974.2,0.1683]
[1769141877848,0.7905843,2975.3,2974.2,0.1683]
[1769141878042,0.2534,2975.5,2974.2,0.1683]
[1769141878249,0.79055617,2975.4,2974.2,0.1683]
[1769141878444,0.2534,2975.5,2974.2,0.1683]
[1769141878649,0.79033838,2975.4,2974.2,0.1683]
[1769141878849,0.2534,2975.5,2974.2,0.1683]
[1769141879052,0.7903385,2975.4,2974.2,0.1683]
[1769141879250,0.2534,2975.5,2974.2,0.1683]
[1769141879445,0.79013732,2975.4,2974.2,0.1683]
[1769141879650,0.2534,2975.5,2974.2,0.1683]
[1769141879950,0.79013719,2975.4,2974.2,0.33060089]
[1769141880147,0.79013719,2975.3,2974.2,0.33060089]
[1769141880351,0.79013719,2975.2,2974.2,0.33060089]
[1769141880551,0.2534,2975.5,2974.2,0.33060089]
[1769141880752,0.79010211,2975.4,2974.2,0.33060089]
[1769141880941,0.79010211,2975.3,2974.2,0.33060089]
[1769141881146,0.79010211,2975.2,2974.2,0.33060089]
[1769141881446,0.2534,2975.5,2974.2,0.33060089]
[1769141881649,0.7899164,2975.4,2974.2,0.33060089]
[1769141881850,0.7899164,2975.3,2974.2,0.33060089]
[1769141882046,0.7899164,2975.2,2974.2,0.33060089]
[1769141882249,0.2534,2975.5,2974.2,0.33060089]
[1769141882457,0.78975732,2975.4,2974.2,0.33060089]
[1769141882755,0.78975732,2975.3,2974.2,0.16230089]
[1769141883050,0.2534,2975.5,2974.2,0.16230089]
[1769141883252,0.78971597,2975.4,2974.2,0.16230089]
[1769141883456,0.78971597,2975.3,2974.2,0.16230089]
[1769141883753,0.2534,2975.5,2974.2,0.16230089]
[1769141884053,0.78962928,2975.4,2974.2,0.16230089]
[1769141884353,0.78962928,2975.3,2974.2,0.16230089]
[1769141884555,0.2534,2975.5,2974.2,0.16230089]
[1769141884756,0.78951818,2975.4,2974.2,0.16230089]
[1769141884954,0.78951818,2975.3,2974.2,0.16230089]
[1769141885256,0.15018691,2975.8,2974.2,0.16230089]
[1769141885448,0.94526199,2975.7,2974.2,0.16230089]
[1769141885644,0.94526199,2975.6,2974.2,0.16230089]
[1769141885848,0.78942294,2975.5,2974.2,0.16230089]
[1769141887744,0.94526199,2975.5,2974.2,0.16230089]
[1769141887946,0.94526199,2975.5,2973.8,1.80029789]
[1769141887947,0.78942294,2975.4,2973.8,1.9504046]
[1769141888147,0.15583905,2975.9,2974.0,0.15010671]
[1769141888348,0.94424274,2975.8,2974.0,0.15010671]
[1769141888554,0.78840369,2975.7,2974.0,0.15010671]
[1769141888759,0.78840369,2975.6,2974.0,0.15010671]
[1769141888948,0.78840369,2975.5,2974.0,0.15010671]
[1769141889154,0.78840369,2975.4,2974.0,0.15010671]
[1769141889353,0.15583905,2975.8,2974.0,0.15010671]
[1769141889659,0.9441542,2975.7,2974.0,0.15010671]
[1769141889859,0.78831515,2975.6,2974.0,1.9504046]
[1769141890055,0.78831515,2975.6,2974.0,1.80029789]
[1769141890258,0.78831515,2975.6,2974.1,0.15010671]
[1769141890755,0.2539,2975.7,2974.5,0.15010671]
[1769141890962,0.2539,2975.7,2974.6,0.15010671]
[1769141891663,0.2539,2975.7,2974.6,1.9504046]
[1769141892165,0.00098974,2976.0,2974.8,2.1186746]
[1769141892661,0.00098974,2976.0,2974.8,1.96856789]
[1769141893565,0.15583905,2976.5,2975.0,2.68621656]
[1769141894157,0.15583905,2976.5,2975.0,1.80029789]
[1769141894458,0.15583905,2976.5,2975.5,0.00503973]
[1769141894658,0.15962619,2976.5,2975.5,0.00887726]
[1769141900872,0.15583905,2976.4,2975.5,0.00887726]
[1769141902868,0.15583905,2976.1,2974.5,1.80029789]
[1769141903066,0.15583905,2976.1,2974.5,0.16828]
[1769141903262,0.15583905,2976.1,2974.5,1.96857789]
[1769141903764,0.15583905,2976.1,2974.5,1.97171598]
[1769141904973,0.00503973,2976.2,2974.5,1.97171598]
[1769141904974,0.15583905,2975.9,2974.5,1.97171598]
[1769141905171,0.15583905,2975.9,2974.5,0.17141809]
[1769141907565,0.15583905,2975.7,2974.5,0.00313809]
[1769141908971,0.15583905,2975.5,2974.5,0.00313809]
[1769141909567,0.15583905,2975.2,2974.5,0.00313809]
[1769141913278,0.15583905,2975.2,2973.9,1.80029789]
[1769141914273,0.15583905,2975.2,2973.9,1.80306894]
[1769141919789,0.15583905,2975.2,2974.0,1.80029789]
[1769141920081,0.15583905,2975.2,2973.9,1.80306894]
[1769141922284,0.13802579,2974.9,2973.9,0.00277105]
[1769141922786,0.88541449,2974.4,2973.9,0.00277105]
[1769141922989,1.02344028,2974.4,2973.4,1.80029789]
[1769141923785,0.13802579,2974.3,2973.4,1.80029789]
[1769141924091,0.13802579,2974.0,2973.4,0.00396422]
[1769141926294,1.02344028,2973.8,2972.7,1.80029789]
[1769141927295,1.02344028,2973.8,2972.7,0.00328453]
[1769141928796,0.13802579,2973.8,2972.7,0.00328453]
[1769141931097,0.13802579,2973.1,2971.7,1.96873789]
[1769141931394,0.13802579,2973.1,2971.8,0.88541449]
[1769141931796,0.00503973,2972.7,2971.8,0.88541449]
[1769141932089,0.00503973,2972.7,2971.8,0.8878696]
[1769141932289,0.13802579,2973.3,2971.8,0.8878696]
[1769141933493,0.13802579,2973.3,2972.3,0.00503973]
[1769141934797,0.26660926,2974.1,2972.3,0.00503973]
[1769141934798,0.13802579,2973.0,2972.3,0.00503973]
[1769141935601,0.88541449,2972.7,2971.8,0.00245511]
[1769141935806,0.13802579,2972.6,2971.8,0.00245511]
[1769141936903,0.00503973,2972.5,2971.8,0.00245511]
[1769141937506,0.89045422,2972.5,2971.8,0.00245511]
[1769141937699,0.13802579,2972.4,2971.1,0.16848]
[1769141938608,0.13802579,2972.4,2971.1,0.17151824]
[1769141942705,0.13802579,2972.4,2971.3,0.88541449]
[1769141945316,0.00503973,2972.5,2971.9,0.88541449]
[1769141945910,0.00503973,2972.5,2971.6,1.05386449]
[1769141947913,0.15388172,2973.2,2971.9,0.88541449]
[1769141950910,0.15388172,2973.2,2971.8,0.17347973]
[1769141950911,0.15388172,2973.9,2972.5,0.88541449]
[1769141952316,0.15388172,2973.9,2972.8,0.88541449]
[1769141953020,0.15388172,2973.9,2972.5,0.88541449]
[1769141953720,0.15388172,2973.8,2972.5,0.88541449]
[1769141953918,0.15388172,2973.8,2972.4,0.1684]
[1769141954318,0.15388172,2973.8,2972.5,0.88541449]
[1769141960820,0.15388172,2973.8,2972.5,2.68571238]
[1769141963929,0.88541449,2974.2,2972.2,2.39349764]
[1769141963930,0.15388172,2974.2,2972.8,0.88541449]
[1769141967533,0.15388172,2974.2,2973.1,0.88541449]
[1769141968130,0.00380373,2974.3,2973.4,0.88541449]
[1769141968333,0.00380373,2974.3,2973.7,0.88541449]
[1769141968534,0.00380373,2974.3,2973.4,0.88812674]
[1769141970833,0.00380373,2974.3,2973.4,0.00271225]
[1769141973932,0.00380373,2974.3,2973.4,0.17105225]
[1769141974127,0.15388172,2974.6,2973.4,0.17105225]
[1769141975132,0.15755132,2974.6,2973.4,1.97135014]
[1769141978337,0.15755132,2974.6,2973.5,1.80029789]
[1769141979843,0.15755132,2974.6,2973.4,0.17105225]
[1769141979844,0.15755132,2974.6,2973.4,1.97135014]
[1769141981240,0.15755132,2974.6,2973.5,1.80029789]
[1769141981743,0.15755132,2974.6,2973.8,0.00503973]
[1769141984639,0.13919385,2974.4,2973.4,0.00271225]
[1769141986946,0.00503973,2974.5,2973.4,0.00271225]
[1769141987141,0.14423358,2974.5,2973.4,0.00271225]
[1769141991054,0.14423358,2974.5,2973.4,1.80301014]
[1769141993263,0.14423358,2974.5,2973.5,1.80029789]
[1769141996258,0.14423358,2974.5,2973.6,1.80029789]
[1769142000363,0.13919385,2974.3,2973.4,0.00271225]
[1769142002562,0.13919385,2974.3,2973.4,1.80301014]
[1769142002962,0.13919385,2974.3,2973.5,1.80029789]
[1769142003266,0.00503973,2974.5,2973.5,1.80029789]
[1769142003660,0.14065174,2975.4,2973.5,1.80029789]
[1769142003965,0.14065174,2975.2,2974.0,1.80029789]
[1769142004774,0.143546,2975.2,2974.0,1.80029789]
[1769142006164,0.143546,2975.2,2973.9,1.80029789]
[1769142007569,0.143546,2975.2,2973.8,1.80029789]
[1769142007872,0.14079537,2974.4,2973.4,1.80301014]
[1769142008064,0.14079537,2974.4,2973.4,0.00271225]
[1769142008867,0.14079537,2974.8,2973.4,1.80301014]
[1769142010676,0.14079537,2974.8,2973.5,1.80029789]
[1769142011174,0.14079537,2974.8,2973.6,1.80029789]
[1769142011374,0.14079537,2974.8,2973.7,1.80029789]
[1769142012270,0.14079537,2974.8,2973.6,1.80029789]
[1769142013071,0.14368963,2975.2,2973.8,1.80029789]
[1769142013271,0.14368963,2975.2,2973.9,1.80029789]
[1769142013875,0.14368963,2975.2,2974.1,1.80029789]
[1769142014268,0.14368963,2975.2,2974.0,1.80029789]
[1769142014667,0.14368963,2975.2,2973.5,4.07251941]
[1769142014668,0.14368963,2975.2,2973.9,1.80029789]
[1769142015377,0.14368963,2975.2,2974.3,0.00503973]
[1769142015971,0.00289426,2975.2,2974.3,0.00503973]
[1769142016372,0.14079537,2975.6,2974.3,1.80533762]
[1769142017576,0.14500014,2975.6,2974.3,1.80533762]
[1769142018176,0.14500014,2975.6,2974.3,0.00503973]
[1769142019777,0.14079537,2975.4,2974.3,0.00503973]
[1769142020581,0.14079537,2975.2,2974.3,0.00503973]
[1769142045292,0.14079537,2975.2,2974.3,1.80533762]
[1769142053805,0.15515487,2975.6,2974.8,0.88551246]
[1769142054604,0.00420477,2975.6,2974.8,2.68581035]
[1769142056295,0.00420477,2975.6,2974.8,0.88551246]
[1769142056495,0.1509501,2976.0,2974.8,0.88551246]
[1769142056808,0.94090536,2975.9,2974.8,2.68581035]
[1769142057000,0.1509501,2975.9,2974.8,2.68581035]
[1769142057806,0.15500146,2975.9,2974.8,2.68581035]
[1769142058506,0.00187163,2975.9,2975.1,0.88551246]
[1769142058704,0.00187163,2975.9,2975.1,2.68581035]
[1769142059399,0.00187163,2975.9,2975.1,0.88551246]
[1769142059603,0.00187163,2975.9,2975.4,0.88551246]
[1769142059802,0.1509501,2976.3,2975.4,0.88551246]
[1769142060006,0.1509501,2976.3,2975.1,2.68581035]
[1769142060306,0.1509501,2976.3,2975.1,0.88551246]
[1769142060808,0.15400711,2976.3,2975.1,0.88551246]
[1769142064514,0.15400711,2976.3,2974.9,1.80029789]
[1769142064818,0.15400711,2976.3,2974.8,2.85407035]
[1769142065414,0.15400711,2976.3,2974.9,1.80029789]
[1769142067320,0.15400711,2976.3,2974.8,2.85407035]
[1769142072522,0.09700711,2976.3,2974.8,2.85407035]
[1769142073229,0.88551246,2976.1,2974.8,1.96855789]
[1769142073424,0.88551246,2976.1,2974.8,0.16826]
[1769142073626,0.00305701,2976.3,2974.8,1.05377246]
[1769142074127,0.00305701,2976.3,2974.8,2.85407035]
[1769142074426,0.00305701,2976.3,2974.8,1.05377246]
[1769142074627,0.14127008,2976.2,2974.8,1.05377246]
[1769142075225,0.14127008,2976.2,2974.8,2.85407035]
[1769142075631,0.14127008,2976.2,2974.8,1.05377246]
[1769142076234,0.14127008,2976.2,2974.8,2.85407035]
[1769142078332,0.14127008,2976.2,2974.8,1.96855789]
[1769142078523,0.14127008,2975.9,2974.8,1.96855789]
[1769142079830,0.14127008,2975.9,2975.0,1.80029789]
[1769142081430,0.14127008,2975.6,2974.9,1.80029789]
[1769142081634,0.14127008,2975.6,2974.6,1.80029789]
[1769142083324,0.00503973,2975.4,2974.7,2.68581035]
[1769142083527,0.14127008,2976.0,2974.8,1.80029789]
[1769142083828,0.14127008,2976.0,2974.7,2.68581035]
[1769142089933,0.14127008,2976.0,2974.7,0.88551246]
[1769142090238,0.14127008,2976.0,2974.6,1.80029789]
[1769142090636,0.14127008,2975.7,2974.6,1.80029789]
[1769142090837,0.14127008,2975.7,2974.5,1.80029789]
[1769142093733,0.14127008,2975.7,2974.6,1.80029789]
[1769142094434,1.0262786,2975.5,2974.6,1.80029789]
[1769142094837,0.14076614,2975.5,2974.6,1.80029789]
[1769142095238,0.14076614,2975.5,2974.5,1.80029789]
[1769142097637,0.14076614,2975.5,2974.4,1.80029789]
[1769142099841,0.14076614,2975.5,2974.3,1.80533762]
[1769142100242,0.00305701,2976.3,2973.8,1.80029789]
[1769142100243,0.14076614,2975.3,2973.8,1.80029789]
[1769142100448,0.14076614,2975.1,2973.8,1.80029789]
[1769142101240,0.14076614,2975.1,2973.7,1.80029789]
[1769142102044,0.14076614,2974.9,2973.6,1.96862789]
[1769142102252,0.14076614,2974.9,2973.6,1.80029789]
[1769142102549,0.14076614,2974.9,2973.4,0.00271225]
[1769142102550,0.14076614,2974.9,2973.5,1.80029789]
[1769142104148,0.14076614,2974.9,2973.4,1.80301014]
[1769142105052,0.14076614,2974.9,2973.9,0.00503973]
[1769142108755,0.14076614,2975.6,2973.9,0.00503973]
[1769142109053,1.02612975,2975.4,2973.9,0.00503973]
[1769142109255,0.14076614,2975.2,2973.9,0.00503973]
[1769142116258,0.14076614,2975.7,2973.9,0.00503973]
[1769142116555,0.14076614,2975.5,2973.9,0.00503973]
[1769142118463,0.14076614,2975.5,2973.9,1.80533762]
[1769142119859,0.14076614,2975.3,2973.9,0.00503973]
[1769142120460,0.14076614,2975.1,2973.9,0.00503973]
[1769142123262,0.88536361,2975.8,2973.9,0.00503973]
[1769142123467,0.13799998,2975.6,2974.0,2.06273079]
[1769142123658,0.13799998,2975.6,2974.2,1.80029789]
[1769142124155,0.13799998,2976.2,2974.2,1.89432768]
[1769142124357,0.78727613,2976.1,2974.7,0.88536361]
[1769142124659,0.14105699,2976.3,2974.7,2.6856615]
[1769142124961,0.78712233,2976.2,2974.8,1.80029789]
[1769142125161,0.14105699,2976.3,2974.8,1.80029789]
[1769142125359,0.14105699,2976.3,2974.7,2.6856615]
[1769142128261,0.14105699,2976.3,2974.7,0.88536361]
[1769142129760,0.14105699,2976.3,2974.6,1.89432768]
[1769142129962,0.14105699,2976.3,2974.7,1.80029789]
[1769142133365,0.14105699,2976.3,2974.7,0.16827]
[1769142137666,0.14153032,2975.9,2974.2,1.80029789]
[1769142139473,0.14153032,2975.9,2974.1,1.80029789]
[1769142140069,0.14153032,2975.9,2974.2,1.80029789]
[1769142140970,0.14153032,2975.9,2974.3,1.80029789]
[1769142141868,0.14153032,2975.9,2974.4,1.80029789]
[1769142142068,0.14153032,2975.9,2974.3,1.8950065]
[1769142142467,0.14153032,2975.9,2974.4,1.80029789]
[1769142144071,0.14153032,2975.9,2974.5,1.80029789]
[1769142144474,0.14153032,2975.9,2974.4,1.80029789]
[1769142145162,0.14153032,2975.9,2974.5,1.80029789]
[1769142149167,0.14153032,2975.9,2974.4,1.80029789]
[1769142149875,0.14153032,2975.7,2974.4,1.80029789]
[1769142150369,0.14153032,2975.7,2974.3,1.80029789]
[1769142150875,0.14153032,2975.5,2974.2,1.80029789]
[1769142151874,0.13990153,2975.3,2973.9,1.80533762]
[1769142152877,0.13990153,2975.3,2973.9,0.00503973]
[1769142153077,0.13990153,2975.1,2973.9,0.00503973]
[1769142156981,0.13990153,2974.6,2973.9,0.00503973]
[1769142158977,0.13990153,2974.6,2973.4,0.00271225]
[1769142158978,0.88596843,2974.4,2973.4,0.00271225]
[1769142159181,1.02586996,2974.4,2973.4,0.00271225]
[1769142160972,0.13990153,2974.3,2973.4,0.00271225]
[1769142161174,0.88596843,2973.8,2972.4,1.80029789]
[1769142161485,1.02586996,2973.8,2972.4,1.80029789]
[1769142162185,0.13990153,2973.7,2972.4,1.80377735]
[1769142162482,0.13990153,2973.7,2972.4,0.00347946]
[1769142163077,0.88596843,2973.5,2972.4,0.00347946]
[1769142164081,1.02586996,2973.5,2972.4,0.00347946]
[1769142164287,0.13990153,2973.4,2972.4,0.00347946]
[1769142169779,0.14235124,2973.8,2972.6,0.88596843]
[1769142170576,0.00244971,2973.8,2972.9,0.88596843]
[1769142170983,0.00244971,2973.8,2972.6,0.88596843]
[1769142172285,0.13990153,2973.7,2972.4,0.00347946]
[1769142173890,1.02586996,2973.5,2972.4,0.00347946]
[1769142174092,0.13990153,2973.4,2972.4,0.00347946]
[1769142179097,0.88596843,2973.2,2972.4,0.00347946]
[1769142179398,0.13990153,2973.1,2972.4,0.00347946]
[1769142180401,0.13990153,2973.1,2971.7,7.25726632]
[1769142181102,0.00503973,2972.7,2971.7,7.25726632]
[1769142181497,0.00503973,2972.7,2971.7,7.26050654]
[1769142181698,0.00503973,2972.7,2971.7,0.88920865]
[1769142182406,0.00503973,2972.7,2971.7,2.68950654]
[1769142183595,0.15661319,2972.7,2971.7,1.80353811]
[1769142183802,0.15157346,2972.5,2971.7,0.00324022]
[1769142188406,0.00503973,2972.7,2971.2,1.80029789]
[1769142188407,0.15163656,2972.2,2971.2,1.80029789]
[1769142188704,0.15163656,2972.6,2971.4,0.88596843]
[1769142189501,0.00503973,2972.7,2971.7,0.88596843]
[1769142191306,0.00503973,2972.7,2971.7,2.68626632]
[1769142191909,0.00503973,2972.7,2972.0,0.88596843]
[1769142194009,0.15163656,2973.4,2972.0,0.88596843]
[1769142196110,0.15163656,2973.0,2971.8,1.80029789]
[1769142198419,0.15163656,2973.0,2971.7,2.68626632]
[1769142198822,0.15163656,2973.0,2971.8,1.80029789]
[1769142199722,0.15163656,2973.0,2971.9,3.84]
[1769142202623,0.15163656,2972.7,2971.9,3.84]
[1769142202925,0.15163656,2972.7,2971.6,3.84]
[1769142203315,0.15163656,2972.7,2972.0,0.88596843]
[1769142203622,0.88596843,2973.3,2972.0,0.88596843]
[1769142203822,0.15163656,2973.1,2972.0,0.88596843]
[1769142204026,0.78938172,2973.0,2972.0,0.88596843]
[1769142204327,0.15163656,2973.1,2972.0,0.88596843]
[1769142204528,0.78949919,2973.0,2972.0,0.88596843]
[1769142204823,0.15163656,2973.1,2972.0,0.88596843]
[1769142205019,0.78949224,2973.0,2972.0,0.88596843]
[1769142205227,0.15163656,2973.1,2972.0,0.88596843]
[1769142205422,0.78963559,2973.0,2972.0,0.88596843]
[1769142205614,0.15163656,2973.1,2972.0,0.88596843]
[1769142205819,0.94127219,2973.0,2971.7,4.72596843]
[1769142206020,0.15163656,2973.0,2971.7,4.72596843]
[1769142206225,0.15163656,2973.0,2971.8,1.80029789]
[1769142208021,0.15163656,2973.0,2971.9,1.80029789]
[1769142210030,0.15163656,2973.0,2971.8,5.64029789]
[1769142211433,0.15163656,2973.0,2971.9,1.80029789]
[1769142213530,0.15163656,2973.0,2972.0,0.88596843]
[1769142214132,0.15163656,2973.0,2972.0,4.72596843]
[1769142216737,0.15163656,2973.0,2972.0,3.84]
[1769142218235,0.15163656,2973.0,2972.0,5.64029789]
[1769142219936,0.15163656,2973.0,2972.1,1.80029789]
[1769142222330,0.1380327,2973.7,2972.1,1.80029789]
[1769142222536,0.1380327,2973.7,2971.9,6.23733989]
[1769142222537,0.1380327,2973.5,2972.2,1.80029789]
[1769142222736,0.7906089,2973.4,2972.4,1.80029789]
[1769142222936,0.1380327,2973.5,2972.5,1.80029789]
[1769142223137,0.1380327,2973.9,2972.5,1.80029789]
[1769142223435,0.79020766,2973.7,2972.5,1.80029789]
[1769142223741,0.79020766,2973.6,2972.6,1.80029789]
[1769142223943,0.1380327,2973.9,2972.6,1.80029789]
[1769142224140,0.79018113,2973.7,2972.6,1.80029789]
[1769142224332,0.1380327,2973.9,2972.7,1.80029789]
[1769142226937,0.1380327,2974.3,2973.0,0.00503973]
[1769142234752,0.1380327,2974.3,2973.0,3.84503973]
[1769142240654,0.1380327,2974.3,2973.1,3.84]
[1769142243152,0.13854471,2973.9,2973.1,3.84]
[1769142243464,0.13854471,2973.7,2973.0,0.00503973]
[1769142249263,0.14927715,2973.6,2972.3,1.80029789]
[1769142249461,0.15431688,2973.6,2972.1,1.80029789]
[1769142249963,0.15431688,2973.6,2972.0,3.84]
[1769142249964,0.14927715,2973.4,2972.0,5.64029789]
[1769142250858,0.14927715,2973.2,2972.0,3.84]
[1769142256360,0.14927715,2973.2,2971.8,1.80029789]
[1769142259672,0.14927715,2973.0,2971.7,3.84]
[1769142260873,0.14927715,2973.0,2971.7,5.64029789]
[1769142261074,0.14927715,2973.0,2971.8,3.84]
[1769142262165,0.14927715,2973.5,2971.8,3.84]
[1769142262365,0.00503973,2973.6,2971.8,3.84]
[1769142262366,0.9370803,2973.4,2971.8,5.64029789]
[1769142262564,0.14927715,2973.4,2971.8,5.64029789]
[1769142264681,0.14927715,2973.4,2971.9,1.80029789]
[1769142266983,0.14927715,2973.4,2971.9,5.64029789]
[1769142267285,0.14927715,2973.4,2972.0,1.80029789]
[1769142270987,0.14927715,2973.4,2972.1,1.80029789]
[1769142272288,0.14927715,2973.4,2972.2,1.80029789]
[1769142272593,0.14927715,2973.4,2972.3,1.80029789]
[1769142274292,0.14927715,2973.4,2972.4,1.80029789]
[1769142277598,0.00503973,2973.6,2972.4,1.80029789]
[1769142278696,0.14568104,2973.6,2972.4,1.80029789]
[1769142279297,0.14568104,2973.6,2972.5,1.80029789]
[1769142280300,0.14568104,2973.6,2972.4,1.80029789]
[1769142282204,0.14568104,2973.6,2972.5,1.80029789]
[1769142282404,0.14568104,2973.6,2972.6,2.6867881]
[1769142283395,0.00503973,2973.6,2972.6,2.6867881]
[1769142285699,0.00503973,2973.6,2972.7,1.80029789]